[Event "Late-Titled-Tuesday-Blitz-February-06-2024"]
[Site "Chess.com"]
[Date "2024.02.06"]
[Round "3"]
[White "Nf3c5"]
[Black "Jarrahi2452"]
[Result "0-1"]
[WhiteElo "2573"]
[BlackElo "2802"]
[TimeControl "180+1"]
[EndTime "14:29:43 PST"]
[Termination "Jarrahi2452 won on time"]

1. d4 {[%clk 0:03:00.9]} 1... d5 {[%clk 0:02:59.5]} 2. Nf3 {[%clk 0:02:59.2]}
2... Nf6 {[%clk 0:02:58.6]} 3. e3 {[%clk 0:02:56.5]} 3... Bf5 {[%clk 0:02:56.2]}
4. c4 {[%clk 0:02:55.5]} 4... e6 {[%clk 0:02:55.9]} 5. Nc3 {[%clk 0:02:54.9]}
5... c6 {[%clk 0:02:55]} 6. Nh4 {[%clk 0:02:51.7]} 6... Be4 {[%clk 0:02:53.6]}
7. f3 {[%clk 0:02:50.9]} 7... Bg6 {[%clk 0:02:53.2]} 8. Qb3 {[%clk 0:02:51.3]}
8... Qb6 {[%clk 0:02:51.9]} 9. Nxg6 {[%clk 0:02:39.7]} 9... hxg6 {[%clk
0:02:51.4]} 10. Bd2 {[%clk 0:02:23.9]} 10... Nbd7 {[%clk 0:02:50.5]} 11. Qc2
{[%clk 0:02:19.5]} 11... dxc4 {[%clk 0:02:36.8]} 12. Bxc4 {[%clk 0:02:17.5]}
12... Bd6 {[%clk 0:02:37]} 13. O-O-O {[%clk 0:01:51]} 13... Nd5 {[%clk
0:02:23.7]} 14. Ne2 {[%clk 0:01:25.4]} 14... a5 {[%clk 0:02:10.4]} 15. a3 {[%clk
0:01:19.1]} 15... Qc7 {[%clk 0:02:02.2]} 16. e4 {[%clk 0:01:11.8]} 16... b5
{[%clk 0:01:51.7]} 17. Bd3 {[%clk 0:00:48.4]} 17... N5b6 {[%clk 0:01:48.4]} 18.
e5 {[%clk 0:00:48.2]} 18... Be7 {[%clk 0:01:45.9]} 19. Bxb5 {[%clk 0:00:48.3]}
19... Rc8 {[%clk 0:01:42.5]} 20. Ba6 {[%clk 0:00:47.6]} 20... Ra8 {[%clk
0:01:39.9]} 21. Bd3 {[%clk 0:00:46.1]} 21... Nd5 {[%clk 0:01:38.6]} 22. Nf4
{[%clk 0:00:43.6]} 22... c5 {[%clk 0:01:30.7]} 23. Nxd5 {[%clk 0:00:35.9]} 23...
exd5 {[%clk 0:01:29.5]} 24. e6 {[%clk 0:00:34.9]} 24... fxe6 {[%clk 0:01:27.7]}
25. Bxg6+ {[%clk 0:00:35.1]} 25... Kd8 {[%clk 0:01:26.7]} 26. Bf7 {[%clk
0:00:24.6]} 26... Ra6 {[%clk 0:01:18.1]} 27. Rhe1 {[%clk 0:00:24]} 27... Nf8
{[%clk 0:01:16.7]} 28. dxc5 {[%clk 0:00:21.8]} 28... Rc6 {[%clk 0:01:03.7]} 29.
Kb1 {[%clk 0:00:20]} 29... Bf6 {[%clk 0:00:53]} 30. Bg6 {[%clk 0:00:18]} 30...
Rxc5 {[%clk 0:00:51.8]} 31. Qd3 {[%clk 0:00:18.3]} 31... e5 {[%clk 0:00:46.9]}
32. Bf5 {[%clk 0:00:16.8]} 32... Rxh2 {[%clk 0:00:43.9]} 33. Re2 {[%clk
0:00:15.7]} 33... Qb6 {[%clk 0:00:42.5]} 34. Bc3 {[%clk 0:00:15.8]} 34... d4
{[%clk 0:00:41.1]} 35. Be1 {[%clk 0:00:13.9]} 35... Ne6 {[%clk 0:00:39.7]} 36.
Bxe6 {[%clk 0:00:13.4]} 36... Qxe6 {[%clk 0:00:40.6]} 37. Qxd4+ {[%clk
0:00:12.3]} 37... exd4 {[%clk 0:00:39.4]} 38. Rxe6 {[%clk 0:00:12.9]} 38... Rxg2
{[%clk 0:00:39.6]} 39. Ra6 {[%clk 0:00:10.5]} 39... Rb5 {[%clk 0:00:37.1]} 40.
b4 {[%clk 0:00:09.7]} 40... axb4 {[%clk 0:00:36.1]} 41. Bxb4 {[%clk 0:00:10.6]}
41... Rf2 {[%clk 0:00:35.2]} 42. Ra8+ {[%clk 0:00:08.8]} 42... Kc7 {[%clk
0:00:34.3]} 43. Rd3 {[%clk 0:00:09.3]} 43... Rh5 {[%clk 0:00:31.9]} 44. Rd1
{[%clk 0:00:02.3]} 44... Rhh2 {[%clk 0:00:31.8]} 45. Rc1+ {[%clk 0:00:02.1]}
45... Kb7 {[%clk 0:00:31]} 46. Rcc8 {[%clk 0:00:02.8]} 46... Rb2+ {[%clk
0:00:27.1]} 47. Kc1 {[%clk 0:00:01.1]} 47... Bg5+ {[%clk 0:00:26.6]} 48. Kd1
{[%clk 0:00:02]} 48... Rb1+ {[%clk 0:00:26.3]} 0-1

[Event "Late-Titled-Tuesday-Blitz-February-06-2024"]
[Site "Chess.com"]
[Date "2024.02.06"]
[Round "3"]
[White "Bilan_Danila"]
[Black "emeli_chess"]
[Result "1-0"]
[WhiteElo "2608"]
[BlackElo "2392"]
[TimeControl "180+1"]
[EndTime "14:29:43 PST"]
[Termination "Bilan_Danila won on time"]

1. d4 {[%clk 0:03:00.9]} 1... Nf6 {[%clk 0:02:59.6]} 2. Nf3 {[%clk 0:03:00.9]}
2... d5 {[%clk 0:02:59.6]} 3. c4 {[%clk 0:03:00.7]} 3... e6 {[%clk 0:03:00]} 4.
Nc3 {[%clk 0:03:00.6]} 4... Bb4 {[%clk 0:03:00]} 5. Qb3 {[%clk 0:02:58]} 5...
Nc6 {[%clk 0:02:53.6]} 6. Bg5 {[%clk 0:02:57]} 6... dxc4 {[%clk 0:02:43.7]} 7.
Qxc4 {[%clk 0:02:55.3]} 7... Qd5 {[%clk 0:02:37.9]} 8. Qxd5 {[%clk 0:02:42]}
8... Nxd5 {[%clk 0:02:33.6]} 9. Kd2 {[%clk 0:02:19.1]} 9... h6 {[%clk
0:02:20.2]} 10. Bh4 {[%clk 0:02:14.2]} 10... f5 {[%clk 0:02:12.1]} 11. h3 {[%clk
0:01:42.3]} 11... f4 {[%clk 0:02:04.2]} 12. e4 {[%clk 0:01:30.4]} 12... Nb6
{[%clk 0:01:05.5]} 13. a3 {[%clk 0:01:17.7]} 13... Bxc3+ {[%clk 0:01:04.6]} 14.
bxc3 {[%clk 0:01:18.6]} 14... g5 {[%clk 0:01:04.8]} 15. Nxg5 {[%clk 0:01:19.3]}
15... hxg5 {[%clk 0:01:04.6]} 16. Bxg5 {[%clk 0:01:20.2]} 16... e5 {[%clk
0:00:54.7]} 17. d5 {[%clk 0:01:11.1]} 17... Na5 {[%clk 0:00:52.9]} 18. Kc2
{[%clk 0:00:59.9]} 18... Kf7 {[%clk 0:00:45.4]} 19. Be2 {[%clk 0:00:52.2]} 19...
Nbc4 {[%clk 0:00:42]} 20. h4 {[%clk 0:00:45.2]} 20... Nd6 {[%clk 0:00:35.5]} 21.
Bf3 {[%clk 0:00:35.3]} 21... b6 {[%clk 0:00:31.9]} 22. g3 {[%clk 0:00:34.8]}
22... fxg3 {[%clk 0:00:30.9]} 23. fxg3 {[%clk 0:00:35.7]} 23... Nac4 {[%clk
0:00:25]} 24. Rhf1 {[%clk 0:00:27]} 24... Kg7 {[%clk 0:00:24.5]} 25. Be2 {[%clk
0:00:22.5]} 25... Ba6 {[%clk 0:00:22.2]} 26. Bd3 {[%clk 0:00:12.6]} 26... Raf8
{[%clk 0:00:18.7]} 27. a4 {[%clk 0:00:12.9]} 27... Kg6 {[%clk 0:00:15.6]} 28. g4
{[%clk 0:00:11.1]} 28... Bc8 {[%clk 0:00:10.5]} 29. Rf5 {[%clk 0:00:08]} 29...
Bxf5 {[%clk 0:00:09.3]} 30. exf5+ {[%clk 0:00:08.9]} 30... Kf7 {[%clk 0:00:09]}
31. Re1 {[%clk 0:00:07]} 31... e4 {[%clk 0:00:09.1]} 32. Bxc4 {[%clk 0:00:06.7]}
32... Nxc4 {[%clk 0:00:08.6]} 33. Rxe4 {[%clk 0:00:07.4]} 33... Re8 {[%clk
0:00:08.6]} 34. Rxc4 {[%clk 0:00:07.5]} 34... Re2+ {[%clk 0:00:07.4]} 35. Kd3
{[%clk 0:00:07.5]} 35... Rg2 {[%clk 0:00:04.4]} 36. Rxc7+ {[%clk 0:00:07.9]}
36... Kg8 {[%clk 0:00:04.4]} 37. Bf6 {[%clk 0:00:07.3]} 37... Rh7 {[%clk
0:00:03.1]} 38. Rc8+ {[%clk 0:00:07.7]} 38... Kf7 {[%clk 0:00:03.3]} 39. g5
{[%clk 0:00:08.6]} 39... Rxh4 {[%clk 0:00:02.2]} 40. Rc7+ {[%clk 0:00:07.5]}
40... Ke8 {[%clk 0:00:02.2]} 41. g6 {[%clk 0:00:05.9]} 1-0

[Event "Late-Titled-Tuesday-Blitz-February-06-2024"]
[Site "Chess.com"]
[Date "2024.02.06"]
[Round "3"]
[White "mjelcic"]
[Black "SamCopeland"]
[Result "0-1"]
[WhiteElo "2200"]
[BlackElo "2408"]
[TimeControl "180+1"]
[EndTime "14:29:43 PST"]
[Termination "SamCopeland won by checkmate"]

1. c4 {[%clk 0:03:00.9]} 1... f5 {[%clk 0:02:59.1]} 2. Nc3 {[%clk 0:02:51.9]}
2... Nf6 {[%clk 0:02:58.9]} 3. g3 {[%clk 0:02:43.3]} 3... g6 {[%clk 0:02:58.8]}
4. Bg2 {[%clk 0:02:43.4]} 4... Bg7 {[%clk 0:02:58.5]} 5. e3 {[%clk 0:02:36.3]}
5... O-O {[%clk 0:02:54]} 6. Nge2 {[%clk 0:02:36.4]} 6... e5 {[%clk 0:02:53.5]}
7. O-O {[%clk 0:02:30.8]} 7... Nc6 {[%clk 0:02:52.4]} 8. d4 {[%clk 0:02:29.7]}
8... e4 {[%clk 0:02:52.5]} 9. h4 {[%clk 0:02:18.4]} 9... h6 {[%clk 0:02:45.1]}
10. Nf4 {[%clk 0:02:11.8]} 10... g5 {[%clk 0:02:41.9]} 11. hxg5 {[%clk
0:02:10.6]} 11... hxg5 {[%clk 0:02:42.8]} 12. Ng6 {[%clk 0:02:09.7]} 12... Rf7
{[%clk 0:02:32.5]} 13. d5 {[%clk 0:02:07.1]} 13... Ne7 {[%clk 0:02:17.4]} 14.
Ne5 {[%clk 0:01:37.8]} 14... Rf8 {[%clk 0:02:14.8]} 15. d6 {[%clk 0:01:37.7]}
15... cxd6 {[%clk 0:02:00.4]} 16. Qxd6 {[%clk 0:01:38.6]} 16... Ne8 {[%clk
0:01:57.4]} 17. Qd4 {[%clk 0:01:07]} 17... d6 {[%clk 0:01:52.2]} 18. Rd1 {[%clk
0:01:07]} 18... Nc7 {[%clk 0:01:38]} 19. Qxd6 {[%clk 0:00:41]} 19... Qxd6 {[%clk
0:01:36.5]} 20. Rxd6 {[%clk 0:00:41.9]} 20... Bxe5 {[%clk 0:01:36.3]} 21. Rd1
{[%clk 0:00:41.9]} 21... Nc6 {[%clk 0:01:27.3]} 22. Nd5 {[%clk 0:00:39.4]} 22...
Nxd5 {[%clk 0:01:26]} 23. Rxd5 {[%clk 0:00:38.8]} 23... Be6 {[%clk 0:01:24.6]}
24. Rb5 {[%clk 0:00:36.7]} 24... Rad8 {[%clk 0:01:18.6]} 25. Rxb7 {[%clk
0:00:28.5]} 25... Rd1+ {[%clk 0:01:17.8]} 26. Kh2 {[%clk 0:00:28.2]} 26... Bxc4
{[%clk 0:01:04.8]} 27. a4 {[%clk 0:00:13.8]} 27... Na5 {[%clk 0:01:01.1]} 28.
Re7 {[%clk 0:00:12.8]} 28... Bf6 {[%clk 0:00:59.4]} 29. Rc7 {[%clk 0:00:11.6]}
29... Bf7 {[%clk 0:00:49.9]} 30. Rc5 {[%clk 0:00:09.9]} 30... Nb3 {[%clk
0:00:49.4]} 31. Rxf5 {[%clk 0:00:10]} 31... Nxa1 {[%clk 0:00:48.8]} 32. Rxf6
{[%clk 0:00:10.5]} 32... Rxc1 {[%clk 0:00:48.9]} 33. Bxe4 {[%clk 0:00:11.1]}
33... Kg7 {[%clk 0:00:45.2]} 34. Rf5 {[%clk 0:00:10.3]} 34... Bg6 {[%clk
0:00:39.7]} 35. Rxg5 {[%clk 0:00:10.7]} 35... Rf6 {[%clk 0:00:40]} 36. f4 {[%clk
0:00:09]} 36... Kf7 {[%clk 0:00:40.2]} 37. Bd5+ {[%clk 0:00:08.7]} 37... Ke7
{[%clk 0:00:39.1]} 38. Re5+ {[%clk 0:00:09]} 38... Kd6 {[%clk 0:00:38.8]} 39.
Bf3 {[%clk 0:00:09.1]} 39... Nb3 {[%clk 0:00:36.5]} 40. Rb5 {[%clk 0:00:08.6]}
40... Nd2 {[%clk 0:00:35.8]} 41. Bg2 {[%clk 0:00:07.6]} 41... Nf1+ {[%clk
0:00:34.5]} 42. Kh3 {[%clk 0:00:07.2]} 42... Nxe3 {[%clk 0:00:34.2]} 43. Bf3
{[%clk 0:00:06.7]} 43... Bf5+ {[%clk 0:00:31.2]} 44. g4 {[%clk 0:00:06.9]} 44...
Rh6+ {[%clk 0:00:29.9]} 45. Kg3 {[%clk 0:00:07]} 45... Rg1+ {[%clk 0:00:27.8]}
46. Kf2 {[%clk 0:00:07.2]} 46... Rxg4 {[%clk 0:00:26.1]} 47. Kxe3 {[%clk
0:00:06.9]} 47... Rh3 {[%clk 0:00:25.6]} 48. Rxf5 {[%clk 0:00:04.7]} 48... Rgg3
{[%clk 0:00:25.8]} 49. Rc5 {[%clk 0:00:05]} 49... Kxc5 {[%clk 0:00:25.6]} 50.
Ke4 {[%clk 0:00:05.3]} 50... Rxf3 {[%clk 0:00:26.5]} 51. Kf5 {[%clk 0:00:06]}
51... Rh4 {[%clk 0:00:25.6]} 52. Kg5 {[%clk 0:00:05.9]} 52... Rfxf4 {[%clk
0:00:25]} 53. Kg6 {[%clk 0:00:06.8]} 53... Rhg4+ {[%clk 0:00:25.2]} 54. Kh5
{[%clk 0:00:06.4]} 54... Rg2 {[%clk 0:00:25.1]} 55. b4+ {[%clk 0:00:07.3]} 55...
Kc4 {[%clk 0:00:24.4]} 56. a5 {[%clk 0:00:08.2]} 56... Rf1 {[%clk 0:00:24.3]}
57. Kh4 {[%clk 0:00:08.2]} 57... Rh1# {[%clk 0:00:25.2]} 0-1

[Event "Late-Titled-Tuesday-Blitz-February-06-2024"]
[Site "Chess.com"]
[Date "2024.02.06"]
[Round "3"]
[White "chenxiaoyuer"]
[Black "Msb2"]
[Result "1-0"]
[WhiteElo "2754"]
[BlackElo "2991"]
[TimeControl "180+1"]
[EndTime "14:29:46 PST"]
[Termination "chenxiaoyuer won by checkmate"]

1. e4 {[%clk 0:03:00.9]} 1... e6 {[%clk 0:03:00.1]} 2. d4 {[%clk 0:03:00.7]}
2... d5 {[%clk 0:03:00.8]} 3. Nd2 {[%clk 0:03:01.4]} 3... c5 {[%clk 0:03:00.9]}
4. Ngf3 {[%clk 0:03:01.5]} 4... Nf6 {[%clk 0:03:00.7]} 5. e5 {[%clk 0:03:01.1]}
5... Nfd7 {[%clk 0:03:01.1]} 6. c3 {[%clk 0:03:01.9]} 6... Nc6 {[%clk
0:03:01.6]} 7. Bd3 {[%clk 0:03:02.1]} 7... f6 {[%clk 0:03:02.3]} 8. exf6 {[%clk
0:02:54.7]} 8... Nxf6 {[%clk 0:03:03.2]} 9. O-O {[%clk 0:02:54.1]} 9... cxd4
{[%clk 0:03:03.8]} 10. cxd4 {[%clk 0:02:54.2]} 10... Bd6 {[%clk 0:03:04.6]} 11.
Re1 {[%clk 0:02:48.1]} 11... O-O {[%clk 0:03:05.1]} 12. b3 {[%clk 0:02:38.4]}
12... Bd7 {[%clk 0:03:04.2]} 13. Bb2 {[%clk 0:02:38.5]} 13... Be8 {[%clk
0:03:04.8]} 14. Rxe6 {[%clk 0:02:29.2]} 14... Bh5 {[%clk 0:02:53.1]} 15. h3
{[%clk 0:02:01.5]} 15... Qd7 {[%clk 0:02:46.5]} 16. Bf5 {[%clk 0:01:36.4]} 16...
Ne7 {[%clk 0:02:34.6]} 17. Rxf6 {[%clk 0:01:27.9]} 17... Nxf5 {[%clk 0:02:34.9]}
18. Rxf8+ {[%clk 0:01:27.6]} 18... Rxf8 {[%clk 0:02:35.8]} 19. Qc2 {[%clk
0:01:19.7]} 19... Bg6 {[%clk 0:02:30.7]} 20. Re1 {[%clk 0:01:08.9]} 20... Nxd4
{[%clk 0:02:22.8]} 21. Qc3 {[%clk 0:01:04.8]} 21... Nc2 {[%clk 0:02:12.3]} 22.
Rc1 {[%clk 0:01:03.3]} 22... Bb4 {[%clk 0:01:35.6]} 23. Qe5 {[%clk 0:01:01.5]}
23... Re8 {[%clk 0:01:35.8]} 24. Qf4 {[%clk 0:00:56.1]} 24... Bd6 {[%clk
0:01:34.6]} 25. Qg5 {[%clk 0:00:50.6]} 25... Be7 {[%clk 0:01:26.2]} 26. Qg3
{[%clk 0:00:43.9]} 26... Bd6 {[%clk 0:01:19]} 27. Be5 {[%clk 0:00:43.9]} 27...
Nd4 {[%clk 0:01:02.5]} 28. Re1 {[%clk 0:00:36.8]} 28... Nf5 {[%clk 0:01:01.3]}
29. Qf4 {[%clk 0:00:36.4]} 29... Bf8 {[%clk 0:00:56.6]} 30. Rc1 {[%clk
0:00:36.2]} 30... Rc8 {[%clk 0:00:54.5]} 31. Rxc8 {[%clk 0:00:34.7]} 31... Qxc8
{[%clk 0:00:55.4]} 32. g4 {[%clk 0:00:34.9]} 32... Nh6 {[%clk 0:00:52.4]} 33.
Nd4 {[%clk 0:00:32.9]} 33... Nf7 {[%clk 0:00:51.7]} 34. N2f3 {[%clk 0:00:32.1]}
34... Be7 {[%clk 0:00:48.1]} 35. Kh2 {[%clk 0:00:29]} 35... h6 {[%clk
0:00:46.8]} 36. h4 {[%clk 0:00:26.5]} 36... Qd7 {[%clk 0:00:40.2]} 37. Qg3
{[%clk 0:00:25.6]} 37... Be4 {[%clk 0:00:39.2]} 38. Bf4 {[%clk 0:00:24.5]} 38...
Bc5 {[%clk 0:00:30.7]} 39. Ne5 {[%clk 0:00:24]} 39... Qe8 {[%clk 0:00:29.7]} 40.
Nxf7 {[%clk 0:00:22.7]} 40... Qxf7 {[%clk 0:00:30.4]} 41. Be5 {[%clk 0:00:23.4]}
41... Kh7 {[%clk 0:00:19]} 42. f4 {[%clk 0:00:23.6]} 42... Bxd4 {[%clk
0:00:12.3]} 43. Bxd4 {[%clk 0:00:23.7]} 43... Qc7 {[%clk 0:00:13]} 44. f5 {[%clk
0:00:22]} 44... Qc2+ {[%clk 0:00:13.1]} 45. Qf2 {[%clk 0:00:21]} 45... Qd1
{[%clk 0:00:13.1]} 46. Kg3 {[%clk 0:00:19.5]} 46... Qd3+ {[%clk 0:00:12.3]} 47.
Kf4 {[%clk 0:00:19.7]} 47... h5 {[%clk 0:00:08.1]} 48. Kg5 {[%clk 0:00:18.3]}
48... hxg4 {[%clk 0:00:08]} 49. f6 {[%clk 0:00:18.1]} 49... gxf6+ {[%clk
0:00:02.6]} 50. Qxf6 {[%clk 0:00:17.8]} 50... Qd2+ {[%clk 0:00:03.2]} 51. Kh5
{[%clk 0:00:17.1]} 51... g3 {[%clk 0:00:01.4]} 52. Qg7# {[%clk 0:00:17.3]} 1-0

[Event "Late-Titled-Tuesday-Blitz-February-06-2024"]
[Site "Chess.com"]
[Date "2024.02.06"]
[Round "3"]
[White "lluiss"]
[Black "Truequitos"]
[Result "1-0"]
[WhiteElo "2160"]
[BlackElo "2522"]
[TimeControl "180+1"]
[EndTime "14:29:46 PST"]
[Termination "lluiss won on time"]

1. e4 {[%clk 0:03:00.9]} 1... e6 {[%clk 0:02:58.6]} 2. d4 {[%clk 0:02:59.6]}
2... d5 {[%clk 0:02:58.7]} 3. e5 {[%clk 0:03:00.1]} 3... c5 {[%clk 0:02:58.4]}
4. Nf3 {[%clk 0:02:59.5]} 4... Nc6 {[%clk 0:02:59]} 5. dxc5 {[%clk 0:02:59.3]}
5... Bxc5 {[%clk 0:02:57.5]} 6. Bd3 {[%clk 0:02:59.1]} 6... Nge7 {[%clk
0:02:57.5]} 7. O-O {[%clk 0:02:58.6]} 7... Ng6 {[%clk 0:02:56.5]} 8. Qe2 {[%clk
0:02:55.9]} 8... Qc7 {[%clk 0:02:55]} 9. Re1 {[%clk 0:02:54.8]} 9... Bd7 {[%clk
0:02:54.4]} 10. h4 {[%clk 0:02:51.6]} 10... O-O-O {[%clk 0:02:48]} 11. h5 {[%clk
0:02:51.6]} 11... Nge7 {[%clk 0:02:48]} 12. c3 {[%clk 0:02:40]} 12... f6 {[%clk
0:02:39.5]} 13. b4 {[%clk 0:02:38.4]} 13... Bb6 {[%clk 0:02:37.6]} 14. a4 {[%clk
0:02:38.5]} 14... a5 {[%clk 0:02:31.3]} 15. Na3 {[%clk 0:02:14]} 15... Nxe5
{[%clk 0:02:24.8]} 16. Nxe5 {[%clk 0:02:13.5]} 16... fxe5 {[%clk 0:02:25.1]} 17.
Nb5 {[%clk 0:01:57.6]} 17... Bxb5 {[%clk 0:02:01.2]} 18. Bxb5 {[%clk 0:01:53.1]}
18... e4 {[%clk 0:01:55.8]} 19. c4 {[%clk 0:01:38.5]} 19... Bd4 {[%clk
0:01:50.3]} 20. Rb1 {[%clk 0:01:27]} 20... Rhf8 {[%clk 0:01:49.7]} 21. Be3
{[%clk 0:01:22.2]} 21... Qe5 {[%clk 0:01:42.1]} 22. Bxd4 {[%clk 0:00:50.2]}
22... Qxd4 {[%clk 0:01:43]} 23. Red1 {[%clk 0:00:49.8]} 23... Qe5 {[%clk
0:01:37.2]} 24. bxa5 {[%clk 0:00:31.9]} 24... d4 {[%clk 0:01:31.7]} 25. a6
{[%clk 0:00:31.2]} 25... b6 {[%clk 0:01:16]} 26. c5 {[%clk 0:00:26]} 26... bxc5
{[%clk 0:00:55.6]} 27. a7 {[%clk 0:00:22.2]} 27... Kc7 {[%clk 0:00:52.4]} 28.
Ba6 {[%clk 0:00:22.3]} 28... Ra8 {[%clk 0:00:42.3]} 29. Rb7+ {[%clk 0:00:20.9]}
29... Kd6 {[%clk 0:00:18.2]} 30. Qb5 {[%clk 0:00:17.9]} 30... Nc6 {[%clk
0:00:17.4]} 31. Rxg7 {[%clk 0:00:10.6]} 31... Qxg7 {[%clk 0:00:14.9]} 32. Bb7
{[%clk 0:00:10.4]} 32... Qc7 {[%clk 0:00:13.4]} 33. Rc1 {[%clk 0:00:07.4]} 33...
Rxa7 {[%clk 0:00:11.5]} 34. Qxc5+ {[%clk 0:00:06.5]} 34... Kd7 {[%clk
0:00:10.6]} 35. Bxc6+ {[%clk 0:00:05.8]} 35... Qxc6 {[%clk 0:00:05.6]} 36. Qxc6+
{[%clk 0:00:05.6]} 36... Ke7 {[%clk 0:00:05.5]} 37. Qc5+ {[%clk 0:00:05.6]}
37... Kf6 {[%clk 0:00:06]} 38. Qxd4+ {[%clk 0:00:05.3]} 38... Kg5 {[%clk
0:00:05.5]} 39. Qxa7 {[%clk 0:00:05.1]} 39... Rf5 {[%clk 0:00:05.2]} 40. Qe3+
{[%clk 0:00:05.5]} 40... Kxh5 {[%clk 0:00:05.4]} 41. Ra1 {[%clk 0:00:05.2]}
41... Ra5 {[%clk 0:00:04.6]} 42. Qc3 {[%clk 0:00:04.6]} 42... Ra6 {[%clk
0:00:05.1]} 43. Qd4 {[%clk 0:00:04.2]} 43... e3 {[%clk 0:00:05.2]} 44. Qxe3
{[%clk 0:00:04.2]} 44... Kg6 {[%clk 0:00:05]} 45. Qd3+ {[%clk 0:00:04.7]} 1-0

[Event "Late-Titled-Tuesday-Blitz-February-06-2024"]
[Site "Chess.com"]
[Date "2024.02.06"]
[Round "3"]
[White "TigrVShlyape"]
[Black "dedpihto_v_kozhanom_palto"]
[Result "1/2-1/2"]
[WhiteElo "2931"]
[BlackElo "2690"]
[TimeControl "180+1"]
[EndTime "14:29:50 PST"]
[Termination "Game drawn by repetition"]

1. d4 {[%clk 0:03:00.9]} 1... g6 {[%clk 0:03:00.5]} 2. c3 {[%clk 0:02:59.2]}
2... Bg7 {[%clk 0:03:00.9]} 3. e4 {[%clk 0:02:58.7]} 3... d6 {[%clk 0:03:01.5]}
4. Nf3 {[%clk 0:02:57.4]} 4... Nc6 {[%clk 0:03:02.1]} 5. Bd3 {[%clk 0:02:50.5]}
5... e5 {[%clk 0:03:02]} 6. dxe5 {[%clk 0:02:47.4]} 6... Nxe5 {[%clk 0:03:02]}
7. Nxe5 {[%clk 0:02:47.4]} 7... dxe5 {[%clk 0:03:01.7]} 8. Be3 {[%clk
0:02:44.3]} 8... Nf6 {[%clk 0:03:01.2]} 9. f3 {[%clk 0:02:44.2]} 9... O-O {[%clk
0:03:01.7]} 10. O-O {[%clk 0:02:44.3]} 10... Be6 {[%clk 0:03:02.1]} 11. Qe2
{[%clk 0:02:38.6]} 11... Nh5 {[%clk 0:03:01]} 12. Bc4 {[%clk 0:02:39]} 12... Qe7
{[%clk 0:03:00.2]} 13. Bxe6 {[%clk 0:02:36.9]} 13... Qxe6 {[%clk 0:03:01.1]} 14.
Na3 {[%clk 0:02:33]} 14... Nf4 {[%clk 0:02:58.5]} 15. Qc4 {[%clk 0:02:21.9]}
15... Qe7 {[%clk 0:02:54.6]} 16. Rad1 {[%clk 0:02:15.1]} 16... Rfd8 {[%clk
0:02:53.7]} 17. Bxf4 {[%clk 0:01:58]} 17... exf4 {[%clk 0:02:53]} 18. Nc2 {[%clk
0:01:45.8]} 18... c6 {[%clk 0:02:44.5]} 19. a4 {[%clk 0:01:44.5]} 19... Be5
{[%clk 0:02:40.8]} 20. Nb4 {[%clk 0:01:41.2]} 20... Bc7 {[%clk 0:02:36]} 21. Kh1
{[%clk 0:01:13.8]} 21... a5 {[%clk 0:02:24.5]} 22. Nc2 {[%clk 0:01:09.1]} 22...
h5 {[%clk 0:02:18.3]} 23. Nd4 {[%clk 0:01:06.2]} 23... Be5 {[%clk 0:02:14.6]}
24. Rd2 {[%clk 0:01:00.9]} 24... Rd6 {[%clk 0:02:12]} 25. Rfd1 {[%clk
0:01:00.6]} 25... Rad8 {[%clk 0:01:54.8]} 26. Kg1 {[%clk 0:00:58.2]} 26... R6d7
{[%clk 0:01:46]} 27. Kf1 {[%clk 0:00:50]} 27... Bc7 {[%clk 0:01:29.9]} 28. h3
{[%clk 0:00:38.2]} 28... Bb6 {[%clk 0:01:24.2]} 29. Qe2 {[%clk 0:00:18.6]} 29...
Bxd4 {[%clk 0:01:12.2]} 30. cxd4 {[%clk 0:00:18.4]} 30... Qb4 {[%clk 0:01:11.4]}
31. e5 {[%clk 0:00:18.4]} 31... Rxd4 {[%clk 0:01:09.4]} 32. Rxd4 {[%clk
0:00:17.5]} 32... Rxd4 {[%clk 0:01:10.3]} 33. Rxd4 {[%clk 0:00:17.1]} 33... Qxd4
{[%clk 0:01:11.2]} 34. e6 {[%clk 0:00:17.5]} 34... fxe6 {[%clk 0:01:05.4]} 35.
Qxe6+ {[%clk 0:00:17.4]} 35... Kg7 {[%clk 0:01:02.2]} 36. Qe7+ {[%clk
0:00:17.5]} 36... Kh6 {[%clk 0:01:00.5]} 37. Qxb7 {[%clk 0:00:15.3]} 37... Qxa4
{[%clk 0:00:51.8]} 38. Qf7 {[%clk 0:00:12.9]} 38... Qd1+ {[%clk 0:00:50]} 39.
Kf2 {[%clk 0:00:12.9]} 39... Qd4+ {[%clk 0:00:50.6]} 40. Kf1 {[%clk 0:00:13]}
40... Qd6 {[%clk 0:00:20.6]} 41. h4 {[%clk 0:00:11.3]} 41... a4 {[%clk
0:00:19.7]} 42. Qe8 {[%clk 0:00:09.5]} 42... Qd1+ {[%clk 0:00:17.7]} 43. Kf2
{[%clk 0:00:09.2]} 43... Qd4+ {[%clk 0:00:17.7]} 44. Kf1 {[%clk 0:00:08.7]}
44... Qxb2 {[%clk 0:00:15.5]} 45. Qf8+ {[%clk 0:00:07.9]} 45... Kh7 {[%clk
0:00:15.6]} 46. Qf7+ {[%clk 0:00:07.2]} 46... Qg7 {[%clk 0:00:16.1]} 47. Qxf4
{[%clk 0:00:06.5]} 47... Qa7 {[%clk 0:00:15.6]} 48. Qc4 {[%clk 0:00:04.3]} 48...
a3 {[%clk 0:00:15.8]} 49. Qa2 {[%clk 0:00:04.5]} 49... Qa4 {[%clk 0:00:14.5]}
50. Qf7+ {[%clk 0:00:03.2]} 50... Kh6 {[%clk 0:00:14.6]} 51. Qf8+ {[%clk
0:00:03.7]} 51... Kh7 {[%clk 0:00:15.3]} 52. Qf7+ {[%clk 0:00:04.2]} 52... Kh6
{[%clk 0:00:15.9]} 53. Qf8+ {[%clk 0:00:04.7]} 53... Kh7 {[%clk 0:00:16.6]} 54.
Qf7+ {[%clk 0:00:05.1]} 1/2-1/2